Cogmind - Beta 13 @@@ ROGUE MODE // 2024.04.28 @ 09:33:25 Player: Jules Result: Destroyed by H-55 Commando with Assault Rifle Performance ------------- Evolutions (2) 1000 Regions Visited (4) 800 Robots Destroyed (40) 200 Value Destroyed (1026) 1026 Prototype IDs (1) 20 Alien Tech Used (0) 0 Bonus (11) 11 TOTAL SCORE: 3057 Bonus ------- High Alert Combat Kills 11 Cogmind --------- Core Integrity 0/550 Matter 38/300 Energy 100/100 System Corruption 0% Temperature Cool (0) Movement Core (100) Ox1 Location -8/Materials Parts ------- > --- POWER (1) -------- (None) > --- PROPULSION (3) --- (None) > --- UTILITY (3) ------ Small Storage Unit > --- WEAPON (4) ------- (None) > --- INVENTORY (8) ---- Light Ion Engine Aluminum Leg Aluminum Leg Aluminum Leg Flak Gun Peak State ------------ > --- POWER ------------ Ion Engine > --- PROPULSION ------- Aluminum Leg Improved Aluminum Leg Improved Aluminum Leg > --- UTILITY ---------- Small Storage Unit Signal Interpreter Utility Shielding > --- WEAPON ----------- Improved Medium Laser Flak Gun Flak Gun Flak Gun > --- INVENTORY -------- Aluminum Leg Aluminum Leg Aluminum Leg Aluminum Leg Terrain Scanner Small Laser Beam Rifle Flak Gun [Rating: 25] Favorites ----------- Power Ion Engine Engine Ion Engine Propulsion Aluminum Leg Leg Aluminum Leg Utility Small Storage Unit Device Terrain Scanner Storage Small Storage Unit Processor Signal Interpreter Protection Utility Shielding Weapon Assault Rifle Energy Gun Improved Medium Laser Ballistic Gun Assault Rifle Ballistic Cannon Assault Cannon Impact Weapon Hammer Build | -11 -10 -10 -9 -8 ------- Run | Yrd Mat Min Mat Mat Slots Evolved 4 | . . . 2 2 Power . | . . . . . Propulsion 1 | . . . 1 . Utility 1 | . . . . 1 Weapon 2 | . . . 1 1 Parts Attached 37 | 6 1 2 10 18 Power 3 | 1 . . 1 1 Engine 3 | 1 . . 1 1 Core . | . . . . . Reactor . | . . . . . Propulsion 14 | 2 . 1 4 7 Treads . | . . . . . Leg 14 | 2 . 1 4 7 Wheel . | . . . . . Hover . | . . . . . Flight . | . . . . . Utility 5 | 1 1 . 1 2 Device 2 | . 1 . . 1 Storage 1 | 1 . . . . Processor 1 | . . . 1 . Hackware . | . . . . . Protection 1 | . . . . 1 Artifact . | . . . . . Weapon 15 | 2 . 1 4 8 Energy Gun 3 | . . . 3 . Energy Cannon . | . . . . . Ballistic Gun 9 | 2 . 1 1 5 Ballistic Cannon 2 | . . . . 2 Launcher . | . . . . . Special Weapon . | . . . . . Impact Weapon 1 | . . . . 1 Slashing Weapon . | . . . . . Piercing Weapon . | . . . . . Special Melee Weapon . | . . . . . Unidentified Prototypes 1 | . . . 1 . Parts Lost 18 | . . 1 4 13 Power 3 | . . . 1 2 Propulsion 5 | . . . 1 4 Utility 2 | . . . . 2 Weapon 8 | . . 1 2 5 Highest Loss Streak 6 | . . 1 2 6 To Critical Strikes . | . . . . . Average Slot Usage (%) 85 | . 89 95 91 68 Engine 9 | . 14 14 10 3 Leg 27 | . 28 28 31 20 Device 5 | . 3 14 5 2 Storage 11 | . 14 14 11 9 Processor 2 | . . . 5 3 Protection 1 | . . . . 5 Energy Gun 8 | . . . 18 5 Ballistic Gun 16 | . 28 24 8 12 Naked Turns . | . . . . . Heaviest Build 26 | 14 15 15 18 26 Greatest Support 37 | 20 20 20 33 37 Greatest Overweight (x) 8 | 2 . . . 8 Average Overweight (x) . | . . . . . Largest Inventory Capacity 8 | 8 8 8 8 8 Average Capacity 7 | 7 8 8 8 8 Most Carried 8 | 2 4 4 5 8 Average Carried 3 | 1 2 3 3 5 Final Capacity 8 | 8 8 8 8 8 Final Carried 5 | 2 3 4 4 5 Class Distribution -------------------- 73% | Mutant 16% | Scavenger-Gunner 3% | Scavenger-Mutant Dominant Class ---------------- Mutant | -10/Materials Mutant | -10/Mines Scavenger-Gunner | -9/Materials Mutant | -8/Materials Resources | -11 -10 -10 -9 -8 ----------- Run | Yrd Mat Min Mat Mat Matter Collected 795 | 221 117 71 223 163 Remotely . | . . . . . Salvage Created 1079 | . 195 49 406 429 Parts 60 | . 11 6 18 25 Haulers Intercepted . | . . . . . Recyclers Shooed 1 | . . . . 1 Parts Field Recycled . | . . . . . Retrieved Matter . | . . . . . Parts Self-Destructed . | . . . . . Prevented . | . . . . . Kills | -11 -10 -10 -9 -8 ------- Run | Yrd Mat Min Mat Mat Combat Hostiles Destroyed 39 | . 8 3 11 17 Guns 37 | . 8 3 11 15 Cannons 1 | . . . . 1 Classes Destroyed 6 | . 3 . 2 1 Worker 1 | . 1 . . . Swarmer 19 | . 6 3 3 7 Grunt 16 | . 2 . 6 8 Brawler 2 | . . . 1 1 Duelist 1 | . . . . 1 Sentry 1 | . . . 1 . Best Kill Streak 7 | . 7 4 7 5 Combat Bots Only 7 | . 6 4 7 5 Max Kills in Single Turn 2 | . 2 2 1 2 Gunslinging 1 | . . 1 . 1 Exploded . | . . . . . Melee . | . . . . . Uniques/NPCs Destroyed . | . . . . . Combat | -11 -10 -10 -9 -8 -------- Run | Yrd Mat Min Mat Mat Hostile Shots Fired 281 | . 65 16 41 159 Missed 60 | . 21 1 10 28 Damage Taken 2987 | . 394 129 411 2053 Core 813 | . 98 41 116 558 Absorbed by Shields . | . . . . . Redirected to Shielding 27 | . . . . 27 Core Remaining (%) 71 | 100 . 44 71 . Volleys Fired 84 | . 25 4 23 32 Largest 4 | . 2 2 3 4 Hottest 180 | . 40 40 96 180 Shots Fired 196 | . 50 8 47 91 Gun 186 | . 50 8 47 81 Cannon 10 | . . . . 10 Launcher . | . . . . . Special . | . . . . . Kinetic 139 | . 50 8 23 58 Thermal 57 | . . . 24 33 Explosive . | . . . . . Electromagnetic . | . . . . . Robot Hit Streak 17 | . 11 12 17 12 Robot Miss Streak 13 | . 3 3 2 13 Penetration Max . | . . . . . Secondary Targets 7 | . 1 1 . 5 Max Gunslinging Chain 1 | . 1 1 . 1 Shots Hit Robots 141 | . 32 4 35 70 Core Hits 89 | . 11 3 16 59 Critical Kills . | . . . . . Critical Parts Destroyed 1 | . . . . 1 Critical Strikes 5 | . . . 3 2 Burn 4 | . . . 3 1 Smash 1 | . . . . 1 Melee Attacks 7 | . . . . 7 Impact 7 | . . . . 7 Slashing . | . . . . . Piercing . | . . . . . Sneak Attacks . | . . . . . Combat Hostiles . | . . . . . Follow-up Attacks . | . . . . . Damage Inflicted 2180 | . 421 52 522 1185 Guns 1972 | . 421 48 522 981 Cannons 63 | . . . . 63 Explosions . | . . . . . Melee 134 | . . . . 134 Ramming 11 | . . 4 . 7 Kinetic 1453 | . 421 48 199 785 Thermal 582 | . . . 323 259 Explosive . | . . . . . Electromagnetic . | . . . . . Impact 134 | . . . . 134 Slashing . | . . . . . Piercing . | . . . . . Highest Corruption 3 | . 1 1 3 . Average Corruption 1 | . 1 1 3 . Corruption Purged . | . . . . . Corruption Blocked . | . . . . . Effects 8 | . 2 2 4 . Matter Fused 3 | . 1 1 1 . Energy Discharges 1 | . . . 1 . Data Loss (minor) 4 | . 1 1 2 . Overload Shots . | . . . . . Overflow Damage 24 | . . . . 24 Projectiles . | . . . . . Explosions . | . . . . . Melee 24 | . . . . 24 Knockbacks . | . . . . . Impact . | . . . . . Kinetic . | . . . . . Secondary . | . . . . . Self-Inflicted Damage . | . . . . . Shots . | . . . . . Rammed . | . . . . . Targets Rammed 4 | . . 1 . 3 Kicked 4 | . . 1 . 3 Crushed . | . . . . . Highest Temperature 961 | . . . 130 961 Average Temperature 228 | . . . 82 318 Received Heat Transfer 663 | . 90 18 159 396 Effects 24 | . . . . 24 Shutdowns 4 | . . . . 4 Energy Bleed 1 | . . . . 1 Interference 2 | . . . . 2 Matter Decay 1 | . . . . 1 Short Circuit 7 | . . . . 7 Damage (minor) 2 | . . . . 2 Damage (major) 6 | . . . . 6 Damage (core) 1 | . . . . 1 Siege Activations . | . . . . . Robots Corrupted . | . . . . . Combat Hostiles . | . . . . . Parts Fried . | . . . . . Impact Corruptions 2 | . . . . 2 Robots Melted . | . . . . . Combat Hostiles . | . . . . . Parts Melted 4 | . . . 1 3 Heat Transferred 1619 | . . . 926 693 Parts Sabotaged . | . . . . . Parts Stolen . | . . . . . Parts Stripped . | . . . . . Power Chain Reactions . | . . . . . Alert | -11 -10 -10 -9 -8 ------- Run | Yrd Mat Min Mat Mat Peak Influence 449 | . 282 161 449 339 Initial 104 | . . 31 58 104 Average 192 | . 114 129 283 207 Maximum Alert Level 2 | . 1 . 2 1 Low Security (%) 45 | 100 61 100 14 34 Level 1 45 | . 38 . 57 65 Level 2 9 | . . . 28 . Level 3 . | . . . . . Level 4 . | . . . . . Level 5 . | . . . . . High Security . | . . . . . Max Security . | . . . . . Squads Dispatched 8 | . 2 . . 6 Investigation 2 | . 2 . . . Extermination . | . . . . . Reinforcement 2 | . . . . 2 Assault . | . . . . . Garrison 4 | . . . . 4 Intercept . | . . . . . Searches Triggered . | . . . . . Construction Impeded . | . . . . . Haulers Reinforced . | . . . . . Active Scanning Responses . | . . . . . Cargo Convoy Interrupts . | . . . . . Stealth | -11 -10 -10 -9 -8 --------- Run | Yrd Mat Min Mat Mat Distress Signals 7 | . 1 . 2 4 Communications Jammed . | . . . . . Distress Signals . | . . . . . Times Spotted 64 | . 12 8 19 25 Peak Tracking Total 8 | . 4 3 8 6 Tactical Retreats 4 | . . 2 2 . Traps | -11 -10 -10 -9 -8 ------- Run | Yrd Mat Min Mat Mat Traps Triggered 1 | . 1 . . . Indirectly . | . . . . . Trap Hack Attempts . | . . . . . Triggered . | . . . . . Disarmed . | . . . . . Reprogrammed 6 | . 6 . . . Reused 1 | . 1 . . . Traps Extracted . | . . . . . Installed . | . . . . . Triggered 1 | . 1 . . . Machines | -11 -10 -10 -9 -8 ---------- Run | Yrd Mat Min Mat Mat Machines Disabled 1 | . . . . 1 Max in Single Turn 1 | . . . . 1 Machines Repaired . | . . . . . Machines Dismantled . | . . . . . Machines Sabotaged . | . . . . . Overloaded Fab Kills . | . . . . . Hacking | -11 -10 -10 -9 -8 --------- Run | Yrd Mat Min Mat Mat Machines Accessed 7 | . 5 . 1 1 Terminals 7 | . 5 . 1 1 Fabricators . | . . . . . Repair Stations . | . . . . . Recycling Units . | . . . . . Scanalyzers . | . . . . . Garrison Access . | . . . . . Total Hacks 19 | . 13 . 2 4 Successful 7 | . 4 . 1 2 Failed 12 | . 9 . 1 2 Catastrophic 1 | . 1 . . . Database Lockouts . | . . . . . Manual 13 | . 9 . 2 2 Terminals 19 | . 13 . 2 4 Fabricators . | . . . . . Repair Stations . | . . . . . Recycling Units . | . . . . . Scanalyzers . | . . . . . Garrison Access . | . . . . . Terminal Hacks 7 | . 4 . 1 2 Terminal Index 2 | . 1 . 1 . Unreport Threat 1 | . . . . 1 Locate Traps 1 | . 1 . . . Reprogram Traps 1 | . 1 . . . Zone Layout 2 | . 1 . . 1 Fabricator Hacks . | . . . . . Repair Station Hacks . | . . . . . Recycling Unit Hacks . | . . . . . Scanalyzer . | . . . . . Garrison Access Hacks . | . . . . . Unauthorized Hacks . | . . . . . Terminals . | . . . . . Fabricators . | . . . . . Repair Stations . | . . . . . Recycling Units . | . . . . . Scanalyzers . | . . . . . Garrison Access . | . . . . . Data Cores Recovered . | . . . . . Used . | . . . . . Hacking Detections 6 | . 4 . 1 1 Full Trace Events 2 | . 2 . . . Feedback Events . | . . . . . Feedback Blocked . | . . . . . Robot Schematics Acquired . | . . . . . Robots Built . | . . . . . Authchips . | . . . . . Time . | . . . . . Total Robot Build Rating . | . . . . . Part Schematics Acquired . | . . . . . Parts Built . | . . . . . Authchips . | . . . . . Time . | . . . . . Total Part Build Rating . | . . . . . Parts Repaired . | . . . . . Time . | . . . . . Parts Recycled . | . . . . . Recycled Matter . | . . . . . Retrieved Matter . | . . . . . Retrieved Components . | . . . . . Parts Scanalyzed . | . . . . . Part Schematics Acquired . | . . . . . Parts Damaged . | . . . . . Bothacking | -11 -10 -10 -9 -8 ------------ Run | Yrd Mat Min Mat Mat Used RIF Installer . | . . . . . Robots Hacked . | . . . . . Non-combat . | . . . . . Combat . | . . . . . Robot Hacks Applied . | . . . . . Relay Couplers Released . | . . . . . Fabnet Peak Effective % . | . . . . . Robots Rewired . | . . . . . Allies Hacked . | . . . . . Hacks Repelled . | . . . . . Allies | -11 -10 -10 -9 -8 -------- Run | Yrd Mat Min Mat Mat Total Allies . | . . . . . Largest Group . | . . . . . Highest-Rated Group . | . . . . . Highest-Rated Ally . | . . . . . Total Orders . | . . . . . Ally Attacks . | . . . . . Total Damage . | . . . . . Kills . | . . . . . Allies Corrupted . | . . . . . Allies Melted . | . . . . . Intel | -11 -10 -10 -9 -8 ------- Run | Yrd Mat Min Mat Mat Robot Analysis Total . | . . . . . Derelict Logs Recovered 1 | . . 1 . . Drone Launches . | . . . . . Drone Recoveries . | . . . . . Exploration | -11 -10 -10 -9 -8 ------------- Run | Yrd Mat Min Mat Mat Turns Passed 1713 | 67 406 224 563 453 Spaces Moved 848 | 42 274 170 241 121 Core 12 | 6 . . . 6 Treads . | . . . . . Legs 836 | 36 274 170 241 115 Wheels . | . . . . . Hover . | . . . . . Flight . | . . . . . Fastest Speed 50 | 50 120 120 120 120 Average Speed 123 | 130 120 120 120 138 Slowest Speed 450 | 190 120 120 120 450 Overloaded Moves . | . . . . . Propulsion Burnouts . | . . . . . Robots Hopped . | . . . . . Cave-ins Triggered . | . . . . . Exploration Rate (%) 28 | 4 49 53 25 11 Regions Visited 4 Branch Regions 1 Pre-discovered Areas . | . . . . . Known Exits Taken 1 | . . . 1 . Unknown Exits Taken 3 | 1 1 1 . . Scrap Searched 1 | . . 1 . . Spaces Dug . | . . . . . Terrain Destroyed 3 | . . . . 3 Melee . | . . . . . Projectile 3 | . . . . 3 AOE . | . . . . . Terrain Rammed . | . . . . . Walls Destroyed . | . . . . . Machines Disabled . | . . . . . Actions | -11 -10 -10 -9 -8 --------- Run | Yrd Mat Min Mat Mat Total 1318 | 51 301 181 466 319 Wait 322 | 2 . 4 191 125 Move 844 | 41 273 169 240 121 Hop . | . . . . . Pick Up 10 | 2 2 1 1 4 Fast Attach 18 | 6 . . 4 8 Attach 6 | . 1 . 4 1 Detach 3 | . . . 1 2 Swap 13 | . . 2 2 9 Drop 7 | . . . . 7 Fire 84 | . 25 4 23 32 Melee 7 | . . . . 7 Ram . | . . . . . Kick 4 | . . 1 . 3 Crush . | . . . . . Escape Stasis . | . . . . . Rewire . | . . . . . Trap . | . . . . . Miscellaneous . | . . . . . Route ------- -11/Scrapyard -10/Materials (discovered 3 exits: *Mat / [*Min x2]) -10/Mines -9/Materials (discovered 2 exits: *Mat / Min) -8/Materials History --------- Turn | Location | Event 12 | -11/Scrapyard | Discovered new exit (range 15) 68 | -11/Scrapyard | Entered Materials 151 | -10/Materials | Discovered new exit (range 15) 316 | -10/Materials | Build established: Mutant 395 | -10/Materials | Discovered new exit (range 12) 473 | -10/Materials | Discovered new exit (range 16) 474 | -10/Materials | Entered Mines 479 | -10/Mines | Core integrity fell below 50% 498 | -10/Mines | Met a Derelict bent on vengeance 518 | -10/Mines | Learned location of 1 exit from Materials 567 | -10/Mines | Discovered new exit (range 11) 698 | -10/Mines | Entered Materials 698 | -9/Materials | Evolved 2 slots: Propulsion x1, Weapon x1 699 | -9/Materials | Identified exit to Mines 945 | -9/Materials | Destroyed 7 combat bots 1039 | -9/Materials | Discovered new exit (range 16) 1260 | -9/Materials | Identified exit to Materials 1261 | -9/Materials | Entered another Materials area 1261 | -8/Materials | Evolved 2 slots: Utility x1, Weapon x1 1269 | -8/Materials | Garrison activated, responded to threat 1403 | -8/Materials | Garrison activated, responded to threat 1435 | -8/Materials | Lost 4 parts (1p1n2w) 1594 | -8/Materials | Lost 3 parts (1n2u) 1647 | -8/Materials | Core integrity fell below 50% 1686 | -8/Materials | Core integrity fell below 20% 1714 | -8/Materials | Destroyed by H-55 Commando with Assault Rifle Last Messages --------------- 01616_ Penetrated by Slug. 01617_ K-01 Serf collects debris. 01619_ Penetrated by Slug. 01619_ Flak Gun destroyed. 01622_ Penetrated by Slug. 01622_ K-01 Serf collects debris. 01625_ Slug penetrates Electrolysis Chamber. 01625_ Aluminum Leg destroyed. 01625_ K-01 Serf collects debris. 01628_ Penetrated by Slug. 01637_ Rnf. Ion Engine destroyed. 01640_ Penetrated by Slug. 01655_ Assault Cannon destroyed. 01658_ Slug penetrates Wall. 01661_ Penetrated by Slug. 01679_ Titanium Leg destroyed. 01688_ Penetrated by Slug. 01688_ Hammer destroyed. 01691_ Penetrated by Slug. 01709_ Slug penetrates Wall. Map ----- +----------------------------------------------------+ | ??????????????????????????????????? | | ??????????????????????????????????? | | ??????????????????????????????????? | | ??????????????????????????????????? | | ??????????????????????????????????? | | ??????????????????????????????????? | | ??????????????????????????????????? | | ??????????????????????????????????? | | ??????????????????????????????????? | | ??????????????????????????????????? | | ???????????? ????????????????????? | | #?? ????? ?? ????????????????????? | | ???? # """ | | ???? # "G ##########+# | | ???? # """ #????# | | ????######## #????# | | ?????????## #????# """ " | | ??????????# % #????# """ " | | ??????????# #????# """ " | | ????#?????# a #????# | | ????#?????# #????# | | ?########### ###### #????# | | ?# # = ###### ######+##### | | ?# =#g=% #! ## | | ?# %h%= # ## | | ?# =" @# # ## """ | | ?# # # "## """ | | ?# "" " " # #! T## """ | | ?# S"" # #### "## ! | | ?# "" # #??# !=## ! | | ############ ##?##+## ! | | # ### ###?#% | | #""" # #?# %% | | #""" # ###[####+#########+# | | #""" + T = +% %% ## | | # # #####[[=*! ## | | #""" # =#???#== ## | | #""" # ##??#="""" ## | | #""" # #??#[""""" ## | | # #!!== #??# """"" ## | | ##########!!== #??# ######## | | ?????????########??# #??????? | | ????????##?????????#########??????? | | | | | | | | | | | | | | | +----------------------------------------------------+ Best States ------------- Heat Dissipation 31 Energy Generation 12 Energy Capacity 265 Matter Stores 300 Matter Capacity 300 Sight Range 16 Terrain Scan Range 14 Terrain Scan Density 10 Utility Shielding 33 Evasion (%) 55 Item Schematics ----------------- None Robot Schematics ------------------ None Fabricated ------------ Nothing Alien Tech Used ----------------- None Achievements -------------- More Dakka Please Troublemaker Challenges ------------ None Game ------ Seed DerelictMetafiberSaw Manual? 0 Play Time 00:24:22 Cumulative 7.0 hours Start 2024.04.28 @ 09:09:55 End 2024.04.28 @ 09:33:25 Sessions 1 Manual Loads 0 Difficulty Rogue Special Mode None Game No. 15 Rogue 11 Adventurer 4 Explorer 0 Win Type - Total 0 Types 0/0/0/0/0/0/0/0/0 Lore% 16 Gallery% 12 Achievement% 12 Wizard Run 0 Options --------- Layout 2 ASCII 0 Keyboard 1 Movement Numpad Keybinds 0 Fullscreen 2 Font 24/Smallcaps Map View 50x44 Zoom Use 0% Tactical HUD 1 Map Filters NONE Filters NONE Steam 1 RUN: 15a5f377-22c3-4c27-9f32-39e85c83b549